bitfinex/quotes_BTCUSD_20241101
["timestamp","ask_amount","ask_price","bid_price","bid_amount"]
[1730449105738,0.52354613,69512.0,69511.0,0.99893868]
[1730449105943,0.66202343,69512.0,69511.0,0.99893868]
[1730449106787,0.52554613,69512.0,69511.0,1.00058068]
[1730449107524,0.52354613,69512.0,69511.0,1.00058068]
[1730449108796,0.65275888,69512.0,69511.0,1.00058068]
[1730449109945,0.65270875,69512.0,69511.0,1.00058068]
[1730449110717,0.65470875,69512.0,69511.0,1.00058068]
[1730449111171,0.79070886,69512.0,69511.0,1.00058068]
[1730449112956,0.79270886,69512.0,69511.0,1.00058068]
[1730449113805,0.79070886,69512.0,69511.0,1.00058068]
[1730449115722,0.79270886,69512.0,69511.0,1.00058068]
[1730449117025,0.79070886,69512.0,69511.0,1.00058068]
[1730449117663,0.79270886,69512.0,69511.0,1.00058068]
[1730449118739,0.79264272,69512.0,69511.0,1.00058068]
[1730449118952,0.79064272,69512.0,69511.0,1.00058068]
[1730449120519,0.79264272,69512.0,69511.0,1.00058068]
[1730449121879,0.79064272,69512.0,69511.0,1.00058068]
[1730449124482,0.66146478,69512.0,69511.0,1.00058068]
[1730449124703,0.44126467,69512.0,69511.0,1.00058068]
[1730449124892,0.57046552,69512.0,69511.0,1.00058068]
[1730449125466,0.44126467,69512.0,69511.0,1.00058068]
[1730449125916,0.4320172,69512.0,69511.0,1.00058068]
[1730449126593,0.2881572,69512.0,69511.0,1.00058068]
[1730449126809,0.15894942,69512.0,69511.0,1.00058068]
[1730449127037,0.16094942,69513.0,69511.0,1.00058068]
[1730449127264,0.20456441,69512.0,69511.0,1.00058068]
[1730449127492,0.04561499,69512.0,69511.0,1.00058068]
[1730449127721,0.18607024,69512.0,69511.0,1.00058068]
[1730449127953,0.31565525,69512.0,69511.0,1.00058068]
[1730449128178,0.4746498,69512.0,69511.0,1.00058068]
[1730449128845,0.47466564,69512.0,69511.0,1.00058068]
[1730449129506,0.62454098,69512.0,69511.0,1.00058068]
[1730449129725,0.87088696,69512.0,69511.0,1.00058068]
[1730449130655,0.86970796,69512.0,69511.0,1.00058068]
[1730449130888,0.87170796,69512.0,69511.0,1.00058068]
[1730449132913,0.88156712,69512.0,69511.0,1.00058068]
[1730449133128,0.73169178,69512.0,69511.0,1.00058068]
[1730449134210,0.88156712,69512.0,69511.0,1.00058068]
[1730449134667,0.88156712,69512.0,69511.0,0.96283332]
[1730449134668,1.09358097,69512.0,69511.0,0.96283332]
[1730449134889,0.90456712,69512.0,69511.0,0.28355933]
[1730449135116,1.05606712,69512.0,69511.0,0.28355933]
[1730449135341,1.05606712,69512.0,69511.0,0.2054081]
[1730449135562,1.05606712,69512.0,69498.0,0.21769576]
[1730449135563,0.1738,69499.0,69498.0,0.21769576]
[1730449135782,0.72114098,69499.0,69498.0,0.21769576]
[1730449135993,0.002,69494.0,69491.0,0.21769576]
[1730449136292,0.54934098,69494.0,69491.0,0.21769576]
[1730449136731,0.54934098,69494.0,69480.0,0.21769576]
[1730449138765,0.72404098,69494.0,69480.0,0.21769576]
[1730449138983,0.83535253,69494.0,69480.0,0.21769576]
[1730449139212,0.2767,69491.0,69480.0,0.21769576]
[1730449139433,0.2767,69491.0,69490.0,4.12725718]
[1730449139434,0.87375068,69491.0,69490.0,4.12725718]
[1730449139652,0.89679195,69491.0,69490.0,4.12725718]
[1730449140793,0.90079195,69491.0,69490.0,4.12725718]
[1730449141320,0.92379195,69491.0,69490.0,4.12725718]
[1730449141767,1.05288482,69491.0,69490.0,4.12725718]
[1730449141990,1.05288482,69491.0,69490.0,3.62223783]
[1730449141991,0.92379195,69491.0,69490.0,3.62223783]
[1730449142435,0.92379195,69491.0,69490.0,2.14720093]
[1730449142436,1.38927961,69491.0,69490.0,2.14720093]
[1730449142693,6.32350712,69491.0,69490.0,2.14720093]
[1730449142919,6.51158195,69491.0,69490.0,2.14720093]
[1730449143150,6.31958195,69491.0,69490.0,2.14720093]
[1730449143379,2.17433091,69491.0,69490.0,2.14720093]
[1730449143593,1.91504266,69491.0,69490.0,2.14720093]
[1730449143830,1.79615323,69491.0,69490.0,2.14720093]
[1730449144052,1.92504266,69491.0,69490.0,2.14720093]
[1730449144269,1.79615323,69491.0,69490.0,2.14720093]
[1730449145166,1.90287175,69491.0,69490.0,1.64218158]
[1730449145399,1.90287175,69491.0,69490.0,0.001642]
[1730449145626,1.08849641,69491.0,69490.0,0.001642]
[1730449145831,1.06549641,69491.0,69490.0,0.001642]
[1730449146058,1.18737175,69491.0,69490.0,0.001642]
[1730449146281,1.20137175,69491.0,69490.0,0.001642]
[1730449146528,1.21537175,69491.0,69490.0,0.001642]
[1730449146749,1.20137175,69491.0,69490.0,0.001642]
[1730449146967,1.22437175,69491.0,69490.0,0.001642]
[1730449147194,0.92462107,69491.0,69490.0,0.001642]
[1730449147655,0.90162107,69491.0,69490.0,0.001642]
[1730449148332,0.91562107,69491.0,69490.0,0.001642]
[1730449148540,1.02279136,69491.0,69490.0,0.001642]
[1730449148757,0.99479136,69491.0,69490.0,0.001642]
[1730449149236,1.00679136,69491.0,69490.0,0.001642]
[1730449149460,1.00076937,69491.0,69490.0,0.001642]
[1730449149666,0.99476937,69491.0,69490.0,0.001642]
[1730449149888,0.91562107,69491.0,69490.0,0.001642]
[1730449150143,1.07312107,69491.0,69490.0,0.001642]
[1730449150580,0.252,69474.0,69473.0,0.21769576]
[1730449150785,0.55473936,69474.0,69473.0,0.21769576]
[1730449150987,0.252,69467.0,69464.0,0.0926]
[1730449151177,0.49045525,69467.0,69464.0,0.0926]
[1730449151416,0.002,69465.0,69464.0,0.0926]
[1730449151657,0.002,69463.0,69462.0,0.0781]
[1730449151882,0.24045525,69463.0,69462.0,0.0781]
[1730449153183,0.23845525,69463.0,69462.0,0.0781]
[1730449154284,0.23845525,69463.0,69462.0,0.079744]
[1730449154285,0.24045525,69463.0,69462.0,0.079744]
[1730449156283,0.23845525,69463.0,69462.0,0.079744]
[1730449156770,0.24045525,69463.0,69462.0,0.079744]
[1730449157864,0.23845525,69463.0,69462.0,0.079744]
[1730449158310,0.24045525,69463.0,69462.0,0.079744]
[1730449164629,0.28326998,69463.0,69462.0,0.001644]
[1730449164835,0.30467735,69463.0,69462.0,0.001644]
[1730449165303,0.30467835,69463.0,69462.0,0.001644]
[1730449165541,0.002,69452.0,69441.0,0.15150334]
[1730449165759,0.23845525,69451.0,69446.0,0.14987534]
[1730449166634,0.13845525,69451.0,69446.0,0.14987534]
[1730449167108,0.13845525,69451.0,69441.0,0.001628]
[1730449167109,0.13845525,69451.0,69450.0,0.44987534]
[1730449168225,0.13845525,69451.0,69450.0,0.3]
[1730449168674,0.13845525,69451.0,69450.0,0.4813]
[1730449168675,0.14045525,69451.0,69450.0,0.4813]
[1730449169090,0.13845525,69451.0,69450.0,0.4813]
[1730449171327,0.13838887,69451.0,69450.0,0.4813]
[1730449171591,0.28237487,69451.0,69450.0,0.4813]
[1730449172481,0.04282375,69458.0,69453.0,0.1701]
[1730449172705,0.143978,69455.0,69454.0,0.1701]
[1730449173797,0.143978,69455.0,69451.0,0.1765]
[1730449174017,0.143978,69455.0,69454.0,0.14987534]
[1730449174245,0.143978,69455.0,69454.0,0.32637534]
[1730449175335,0.143978,69455.0,69454.0,0.1765]
[1730449175960,0.28243325,69455.0,69454.0,0.1765]
[1730449176380,0.32536388,69455.0,69454.0,0.1765]
[1730449177459,0.28243325,69455.0,69454.0,0.178144]
[1730449178365,0.28243325,69455.0,69454.0,0.32801934]
[1730449178580,0.3468292,69455.0,69454.0,0.32801934]
[1730449179459,0.44128459,69455.0,69454.0,0.32801934]
[1730449180551,0.44128459,69455.0,69454.0,0.178144]
[1730449181891,0.44328459,69455.0,69454.0,0.178144]
[1730449182128,0.44128459,69455.0,69454.0,0.178144]
[1730449183264,0.5720765,69455.0,69454.0,0.178144]
[1730449183484,0.58604308,69455.0,69454.0,0.001644]
[1730449183704,0.58637923,69455.0,69454.0,0.001644]
[1730449186689,0.59607064,69455.0,69454.0,0.001644]
[1730449189825,0.43688315,69455.0,69454.0,0.001644]
[1730449190681,0.39586134,69451.0,69450.0,0.301644]
[1730449190896,0.57707508,69451.0,69450.0,0.301644]
[1730449194397,0.42719974,69451.0,69450.0,0.301644]
[1730449198354,0.57707508,69451.0,69450.0,0.301644]
[1730449199913,0.42719974,69451.0,69450.0,0.301644]
[1730449200126,0.42719974,69451.0,69450.0,0.378444]
[1730449201721,0.73173617,69451.0,69450.0,0.471244]
[1730449202149,0.54353879,69451.0,69450.0,0.471244]
[1730449202605,0.58619569,69451.0,69450.0,0.471244]
[1730449202798,0.73607103,69451.0,69450.0,0.378444]
[1730449202987,0.88150992,69451.0,69450.0,0.301644]
[1730449203200,0.73163458,69451.0,69450.0,0.301644]
[1730449203349,0.58619569,69451.0,69450.0,0.301644]
[1730449203575,0.54153879,69451.0,69450.0,0.476044]
[1730449205000,0.54353879,69451.0,69450.0,0.476044]
[1730449205229,0.54153879,69451.0,69450.0,0.476044]
[1730449205750,0.54153879,69451.0,69450.0,0.378644]
[1730449205953,0.54353879,69451.0,69450.0,0.301644]
[1730449206137,0.5861923,69451.0,69450.0,0.301644]
[1730449208394,0.73159568,69451.0,69450.0,0.380544]
[1730449209072,0.5861923,69451.0,69450.0,0.380544]
[1730449209305,0.59615215,69451.0,69450.0,0.380544]
[1730449210079,0.7415544,69451.0,69450.0,0.380544]
[1730449210337,0.59615215,69451.0,69450.0,0.380544]
[1730449210473,0.59615215,69451.0,69450.0,0.474444]
[1730449210679,0.74155542,69451.0,69450.0,0.474444]
[1730449210934,0.59615215,69451.0,69450.0,0.474444]
[1730449211311,0.59608068,69451.0,69450.0,0.474444]
[1730449211793,0.74147594,69451.0,69450.0,0.474444]
[1730449212720,0.59608068,69451.0,69450.0,0.474444]
[1730449217607,0.59408068,69451.0,69450.0,0.474444]
[1730449217879,0.58412083,69451.0,69450.0,0.474444]
[1730449218541,0.61337021,69451.0,69450.0,0.474444]
[1730449218764,0.29748132,69451.0,69450.0,0.62431934]
[1730449218996,0.15902607,69451.0,69450.0,0.62431934]
[1730449219239,0.1590388,69451.0,69450.0,0.45151934]
[1730449219453,0.000822,69454.0,69450.0,0.45151934]
[1730449219454,0.08615986,69453.0,69450.0,0.45151934]
[1730449219666,0.06461451,69453.0,69450.0,0.45151934]
[1730449219892,0.04307488,69451.0,69450.0,0.45151934]
[1730449220125,0.06461451,69457.0,69453.0,0.31828]
[1730449220325,0.06461451,69457.0,69452.0,0.287968]
[1730449220326,0.06461451,69457.0,69455.0,0.143978]
[1730449220543,0.06461601,69459.0,69457.0,0.14987534]
[1730449220755,0.08615549,69462.0,69457.0,0.14987534]
[1730449220975,0.08615549,69463.0,69457.0,0.14987534]
[1730449221195,0.08615549,69464.0,69458.0,0.1695]
[1730449221428,0.23011549,69464.0,69459.0,0.099]
[1730449221652,0.08615549,69465.0,69460.0,0.0823]
[1730449221870,0.08615549,69465.0,69460.0,0.1813]
[1730449222090,0.30385125,69466.0,69460.0,0.1813]
[1730449222317,0.21769576,69466.0,69460.0,0.1813]
[1730449222782,0.08615549,69468.0,69460.0,0.1813]
[1730449223038,0.143952,69468.0,69460.0,0.1813]
[1730449223293,0.08615549,69470.0,69460.0,0.40157693]
[1730449223509,0.143943,69472.0,69463.0,0.1721]
[1730449223729,0.21769576,69473.0,69467.0,0.0791]
[1730449223730,0.13845525,69471.0,69467.0,0.0791]
[1730449223974,0.13845525,69471.0,69468.0,0.00287848]
[1730449224181,0.13845525,69471.0,69470.0,0.0791]
[1730449224395,0.37402549,69476.0,69470.0,0.0791]
[1730449224609,0.37402549,69476.0,69469.0,0.093]
[1730449224610,0.08615549,69481.0,69476.0,0.0831]
[1730449224825,0.13845525,69481.0,69480.0,0.14987534]
[1730449225042,0.13845525,69481.0,69478.0,0.0831]
[1730449225270,0.143919,69484.0,69478.0,0.0831]
[1730449226135,0.14392,69483.0,69478.0,0.0831]
[1730449226360,0.1,69482.0,69478.0,0.0831]
[1730449227235,0.143922,69482.0,69481.0,0.0832]
[1730449227463,0.1,69482.0,69481.0,0.0832]
[1730449228166,0.1,69482.0,69481.0,0.18]
[1730449228383,0.000822,69490.0,69481.0,0.18]
[1730449228384,0.144728,69490.0,69483.0,0.0832]
[1730449228599,0.000822,69490.0,69485.0,0.0789]
[1730449228817,0.143908,69489.0,69485.0,0.0789]
[1730449229048,0.143913,69486.0,69485.0,0.0789]
[1730449230615,0.28236825,69486.0,69485.0,0.0789]
[1730449232209,0.28236825,69486.0,69475.0,0.0995]
[1730449232210,0.002,69479.0,69475.0,0.0995]
[1730449232434,0.002,69479.0,69474.0,0.21769576]
[1730449232435,0.143936,69475.0,69474.0,0.21769576]
[1730449232650,0.28239125,69475.0,69474.0,0.21769576]
[1730449232865,0.143949,69469.0,69468.0,0.0995]
[1730449233535,0.287884,69473.0,69468.0,0.0995]
[1730449233755,0.42633125,69475.0,69468.0,0.0995]
[1730449233976,0.28786,69478.0,69470.0,0.14987534]
[1730449233977,0.13845525,69474.0,69470.0,0.14987534]
[1730449234191,0.14394,69473.0,69470.0,0.14987534]
[1730449234411,0.143943,69472.0,69470.0,0.14987534]
[1730449235075,0.143944,69471.0,69470.0,0.14987534]
[1730449235282,0.143944,69471.0,69470.0,0.0831]
[1730449237892,0.143944,69471.0,69470.0,0.23297534]
[1730449238328,0.143944,69471.0,69470.0,0.24096966]
[1730449240085,0.143944,69471.0,69470.0,0.09109432]
[1730449241460,0.143944,69471.0,69470.0,0.00799432]
[1730449241461,0.28239925,69471.0,69470.0,0.00799432]
[1730449241677,0.53427459,69471.0,69470.0,0.00799432]
[1730449241902,0.143963,69462.0,69461.0,0.0965]
[1730449242113,0.28241825,69462.0,69461.0,0.0965]
[1730449242329,0.28241825,69462.0,69461.0,0.10449432]
[1730449242769,0.28241825,69462.0,69461.0,0.00799432]
[1730449243212,0.14398,69454.0,69453.0,0.1735]
[1730449243687,0.14398,69454.0,69453.0,0.18149432]
[1730449244351,0.14398,69454.0,69453.0,0.10019432]
[1730449244572,0.28243525,69454.0,69453.0,0.10019432]
[1730449245485,0.14398,69454.0,69453.0,0.10019432]
[1730449245699,0.14398,69454.0,69453.0,0.10307354]
[1730449247961,0.14398,69454.0,69453.0,0.10019432]
[1730449248404,0.14398,69454.0,69453.0,0.10236405]
[1730449249524,0.28795,69457.0,69453.0,0.10236405]
[1730449249741,0.28243125,69456.0,69453.0,0.10524318]
[1730449249959,0.28243125,69456.0,69455.0,0.14987534]
[1730449250404,0.143972,69458.0,69455.0,0.16292556]
[1730449250618,0.1,69463.0,69456.0,0.0808]
[1730449250834,0.143968,69460.0,69459.0,0.14987534]
[1730449251276,0.143968,69460.0,69459.0,0.16004647]
[1730449251756,0.287927,69462.0,69459.0,0.16004647]
[1730449251757,0.143965,69462.0,69459.0,0.16004647]
[1730449251970,0.143967,69460.0,69459.0,0.16004647]
[1730449253305,0.28242225,69460.0,69459.0,0.01017113]
[1730449253755,0.28242225,69460.0,69456.0,0.0808]
[1730449253756,0.13845525,69460.0,69456.0,0.0808]
[1730449253984,0.143973,69457.0,69456.0,0.0808]
[1730449255958,0.04292473,69461.0,69456.0,0.23355436]
[1730449256175,0.1,69464.0,69460.0,0.14987534]
[1730449256392,0.1,69464.0,69455.0,0.287953]
[1730449256393,0.1,69464.0,69463.0,0.14987534]
[1730449256624,0.1,69464.0,69463.0,0.33105394]
[1730449256855,0.24395,69469.0,69463.0,0.47213634]
[1730449257076,0.243949,69469.0,69467.0,0.14987534]
[1730449257537,0.1,69466.0,69463.0,0.1783]
[1730449257766,0.13845525,69465.0,69463.0,0.0997]
[1730449258041,0.143959,69464.0,69463.0,0.0997]
[1730449259352,0.18693004,69464.0,69463.0,0.0997]
[1730449259560,0.143959,69464.0,69463.0,0.0997]
[1730449259769,0.18694151,69464.0,69463.0,0.0997]
[1730449260203,0.143959,69464.0,69463.0,0.0997]
[1730449261527,0.2084472,69464.0,69463.0,0.0997]
[1730449261982,0.0644882,69465.0,69463.0,0.0997]
[1730449262217,0.04300484,69464.0,69463.0,0.10257872]
[1730449262443,0.143954,69467.0,69464.0,0.01012597]
[1730449262444,0.0644882,69467.0,69464.0,0.01012597]
[1730449262682,0.2084422,69467.0,69466.0,0.14987534]
[1730449262896,0.0644882,69467.0,69466.0,0.14987534]
[1730449263107,0.0644882,69468.0,69466.0,0.16000131]
[1730449263315,0.0644882,69467.0,69466.0,0.16000131]
[1730449263526,0.38879792,69468.0,69466.0,0.16000131]
[1730449263772,0.22993626,69468.0,69466.0,0.16000131]
[1730449264424,0.30282412,69467.0,69466.0,0.16000131]
[1730449264638,0.30282412,69467.0,69466.0,0.01012597]
[1730449265086,0.143959,69464.0,69463.0,0.0997]
[1730449265314,0.30283012,69464.0,69463.0,0.0997]
[1730449266416,0.3889432,69464.0,69463.0,0.0997]
[1730449266670,0.15887112,69464.0,69463.0,0.0997]
[1730449266881,0.06458046,69465.0,69463.0,0.0997]
[1730449268222,0.143955,69466.0,69463.0,0.0997]
[1730449268223,0.06458046,69464.0,69463.0,0.0997]
[1730449269371,0.06458033,69465.0,69463.0,0.0997]
[1730449270288,0.04305319,69464.0,69463.0,0.0997]
[1730449271182,0.143957,69465.0,69463.0,0.0997]
[1730449271631,0.20853733,69465.0,69463.0,0.0997]
[1730449272968,0.143959,69464.0,69463.0,0.0997]
[1730449273698,0.20853933,69464.0,69463.0,0.101342]
[1730449274121,0.06460769,69464.0,69463.0,0.101342]
[1730449274547,0.143958,69465.0,69463.0,0.101342]
[1730449275180,0.23010159,69465.0,69463.0,0.101342]
[1730449275389,0.08614359,69465.0,69463.0,0.101342]
[1730449275607,0.08614359,69465.0,69464.0,0.00287856]
[1730449275829,0.24518295,69465.0,69464.0,0.07837856]
[1730449276699,0.08614359,69465.0,69464.0,0.07837856]
[1730449277332,0.08620833,69465.0,69464.0,0.219459]
[1730449277588,0.15903936,69465.0,69464.0,0.219459]
[1730449278221,0.10767949,69466.0,69464.0,0.0755]
[1730449278641,0.15916196,69465.0,69464.0,0.0755]
[1730449278858,0.10779223,69466.0,69464.0,0.0755]
[1730449279276,0.10779401,69466.0,69464.0,0.0755]
[1730449279523,0.26695861,69466.0,69464.0,0.0755]
[1730449279934,0.1591646,69465.0,69464.0,0.0755]
[1730449280159,0.10779401,69466.0,69464.0,0.0755]
[1730449280368,0.143957,69465.0,69464.0,0.0755]
[1730449280576,0.3031216,69465.0,69464.0,0.0755]
[1730449280809,0.1591646,69465.0,69464.0,0.0755]
[1730449281283,0.26695861,69465.0,69464.0,0.0755]
[1730449281713,0.25175101,69465.0,69464.0,0.0755]
[1730449281934,0.26695861,69465.0,69464.0,0.0755]
[1730449282361,0.10779401,69465.0,69464.0,0.0755]
[1730449283441,0.10779401,69465.0,69464.0,0.08562259]
[1730449283655,0.25175101,69465.0,69464.0,0.08562259]
[1730449283933,0.41091561,69465.0,69464.0,0.08562259]
[1730449284154,0.26695861,69465.0,69464.0,0.08562259]
[1730449285281,0.10779401,69465.0,69464.0,0.08562259]
[1730449286768,0.10779401,69465.0,69464.0,0.08726459]
[1730449289104,0.10779401,69465.0,69464.0,0.23122359]
[1730449289528,0.26695861,69465.0,69464.0,0.23122359]
[1730449289748,0.26672543,69465.0,69464.0,0.23122359]
[1730449289975,0.26672543,69465.0,69464.0,0.2341021]
[1730449289976,0.10756083,69465.0,69464.0,0.2341021]
[1730449290253,0.1,69477.0,69464.0,0.09416778]
[1730449290254,0.06191629,69466.0,69464.0,0.09416778]
[1730449290459,0.08626062,69470.0,69468.0,0.14395]
[1730449290679,0.24546215,69469.0,69468.0,0.23525]
[1730449290905,0.15920153,69473.0,69471.0,0.143943]
[1730449291122,0.15920115,69472.0,69471.0,0.143944]
[1730449291374,0.15920115,69472.0,69471.0,0.005]
[1730449291596,0.08624612,69473.0,69472.0,0.228242]
[1730449291803,0.1591919,69482.0,69472.0,0.23417534]
[1730449292029,0.34704857,69483.0,69473.0,0.31179853]
[1730449292030,0.15919034,69481.0,69473.0,0.31179853]
[1730449292243,0.21769576,69483.0,69473.0,0.31179853]
[1730449292244,0.21769576,69483.0,69480.0,0.14987534]
[1730449292471,0.15915382,69482.0,69481.0,0.0989]
[1730449292691,0.15915382,69482.0,69481.0,0.24877534]
[1730449293967,0.15912422,69482.0,69481.0,0.24877534]
[1730449294636,0.30304622,69482.0,69481.0,0.24877534]
[1730449294858,0.30304622,69482.0,69481.0,0.0989]
[1730449295091,0.30304622,69482.0,69472.0,0.0843]
[1730449295092,0.15912422,69482.0,69476.0,0.0929]
[1730449295331,0.143935,69476.0,69473.0,0.21769576]
[1730449295550,0.30306122,69475.0,69473.0,0.21769576]
[1730449295767,0.15912422,69474.0,69472.0,0.0843]
[1730449295988,0.15912422,69474.0,69472.0,0.08425829]
[1730449296219,0.1569935,69473.0,69472.0,0.23413363]
[1730449296433,0.143933,69477.0,69472.0,0.31052189]
[1730449296720,0.10776852,69476.0,69472.0,0.31052189]
[1730449297158,0.143937,69475.0,69472.0,0.23413363]
[1730449297385,0.143939,69474.0,69472.0,0.23413363]
[1730449297599,0.25170355,69476.0,69472.0,0.23413363]
[1730449297826,0.143939,69474.0,69472.0,0.23577563]
[1730449298051,0.1420882,69474.0,69472.0,0.23577563]
[1730449298483,0.25170455,69475.0,69473.0,0.01003392]
[1730449298728,0.143938,69474.0,69473.0,0.01003392]
[1730449299144,0.1365232,69474.0,69473.0,0.01003392]
[1730449299347,0.10776855,69475.0,69473.0,0.01003392]
[1730449299559,0.25170455,69475.0,69473.0,0.01003392]
[1730449299776,0.143938,69474.0,69473.0,0.01003392]
[1730449300698,0.10776855,69475.0,69473.0,0.01003392]
[1730449302007,0.10776855,69474.0,69473.0,0.01003392]
[1730449302208,0.10776855,69475.0,69473.0,0.01003392]
[1730449303531,0.10161946,69475.0,69473.0,0.01003392]
[1730449304600,0.10161946,69475.0,69474.0,0.04876546]
[1730449305038,0.10161946,69475.0,69474.0,0.05874216]
[1730449305254,0.41716826,69482.0,69474.0,0.05874216]
[1730449305255,0.143926,69480.0,69474.0,0.05874216]
[1730449305473,0.143926,69480.0,69479.0,0.14987534]
[1730449305692,0.12933588,69482.0,69479.0,0.14987534]
[1730449305907,0.143926,69480.0,69479.0,0.24932647]
[1730449306114,0.143926,69480.0,69479.0,0.24267534]
[1730449306319,0.143926,69480.0,69479.0,0.24932502]
[1730449308319,0.143926,69480.0,69479.0,0.24922502]
[1730449311401,0.30307731,69480.0,69479.0,0.24922502]
[1730449311852,0.30307731,69480.0,69479.0,0.00664968]
[1730449312302,0.143938,69474.0,69473.0,0.24961734]
[1730449312518,0.25172924,69474.0,69473.0,0.24961734]
[1730449312729,0.30308931,69474.0,69473.0,0.24961734]
[1730449313407,0.30308931,69474.0,69473.0,0.15151734]
[1730449313819,0.30308931,69474.0,69473.0,0.15816375]
[1730449314043,0.143938,69474.0,69473.0,0.15816375]
[1730449314274,0.28239325,69474.0,69473.0,0.00828841]
[1730449314492,0.52326483,69474.0,69473.0,0.00828841]
[1730449314715,0.62326483,69474.0,69473.0,0.001642]
[1730449314936,0.24394,69473.0,69472.0,0.00128242]
[1730449315158,0.58428173,69473.0,69472.0,0.00128242]
[1730449315842,0.42511015,69473.0,69472.0,0.00128242]
[1730449316122,0.58431893,69473.0,69472.0,0.00128242]
[1730449316336,0.59618931,69473.0,69472.0,0.00128242]
[1730449317853,0.59418931,69473.0,69472.0,0.00128242]
[1730449318075,0.59346939,69473.0,69472.0,0.00128242]
[1730449318728,0.59546939,69473.0,69472.0,0.00128242]
[1730449320115,0.59346939,69473.0,69472.0,0.00128242]
[1730449320518,0.59340697,69473.0,69472.0,0.00128242]
[1730449321429,0.58353659,69473.0,69472.0,0.00128242]
[1730449322524,0.72901451,69473.0,69472.0,0.00128242]
[1730449322780,0.54082169,69473.0,69472.0,0.00128242]
[1730449323005,0.58349703,69473.0,69472.0,0.00128242]
[1730449323228,0.72897487,69473.0,69472.0,0.00128242]
[1730449323439,0.54082169,69473.0,69472.0,0.00128242]
[1730449323654,0.54082169,69473.0,69472.0,0.01048018]
[1730449323890,0.54078399,69473.0,69472.0,0.00128242]
[1730449324612,0.54078399,69473.0,69472.0,0.00416044]
[1730449324817,0.54078399,69473.0,69472.0,0.01335124]
[1730449325044,0.54078399,69473.0,69472.0,0.00416044]
[1730449325263,0.54078399,69473.0,69472.0,0.01335124]
[1730449325473,0.54078399,69473.0,69472.0,0.00416044]
[1730449325686,0.44078399,69473.0,69472.0,0.01335124]
[1730449325923,0.44078399,69473.0,69472.0,0.00128242]
[1730449326348,0.44078399,69473.0,69472.0,0.01047322]
[1730449327468,0.15910866,69473.0,69472.0,0.11075164]
[1730449327693,0.30304666,69474.0,69472.0,0.10787322]
[1730449327950,0.15910866,69473.0,69472.0,0.10787322]
[1730449328166,0.15887948,69473.0,69472.0,0.10787322]
[1730449328605,0.000821,69475.0,69472.0,0.10787322]
[1730449328606,0.144758,69475.0,69472.0,0.10787322]
[1730449328819,0.000821,69475.0,69472.0,0.10787322]
[1730449329029,0.14394,69473.0,69472.0,0.10787322]
[1730449331082,0.000821,69475.0,69472.0,0.10787322]
[1730449332025,0.144757,69475.0,69472.0,0.10787322]
[1730449332244,0.000821,69475.0,69472.0,0.10787322]
[1730449332457,0.000821,69475.0,69473.0,0.0822]
[1730449332880,0.000821,69475.0,69474.0,0.00918901]
[1730449333319,0.000821,69475.0,69474.0,0.26211729]
[1730449333535,0.000821,69475.0,69474.0,0.33962701]
[1730449333536,0.0870174,69475.0,69474.0,0.33962701]
[1730449333750,0.04391789,69475.0,69474.0,0.33962701]
[1730449333974,0.06546634,69475.0,69474.0,0.33962701]
[1730449336278,0.000821,69475.0,69474.0,0.33962701]
[1730449336721,0.000821,69475.0,69474.0,0.4332023]
[1730449338078,0.000821,69475.0,69474.0,0.33962701]
[1730449338309,0.06545814,69475.0,69474.0,0.19568901]
[1730449338556,0.06545814,69475.0,69474.0,0.33962701]
[1730449338780,0.000821,69475.0,69474.0,0.33962701]
[1730449341438,0.000821,69475.0,69474.0,0.44628329]
[1730449343226,0.06546157,69475.0,69474.0,0.44628329]
[1730449343468,0.000821,69475.0,69474.0,0.30234529]
[1730449343699,0.000821,69475.0,69474.0,0.19568901]
[1730449344148,0.000821,69475.0,69474.0,0.11228901]
[1730449344362,0.06546058,69475.0,69474.0,0.11228901]
[1730449344584,0.000821,69475.0,69474.0,0.11228901]
[1730449345255,0.25248557,69475.0,69474.0,0.00918901]
[1730449345473,0.442284,69475.0,69474.0,0.00918901]
[1730449345696,0.14394,69473.0,69472.0,0.00128242]
[1730449345935,0.441467,69473.0,69472.0,0.00128242]
[1730449348163,0.44031651,69473.0,69472.0,0.00128242]
[1730449348387,0.54031651,69473.0,69472.0,0.00128242]
[1730449348898,0.54031651,69473.0,69464.0,0.001642]
[1730449348899,0.143957,69465.0,69464.0,0.001642]
[1730449349106,0.28241225,69465.0,69464.0,0.001642]
[1730449349313,0.441484,69465.0,69464.0,0.001642]
[1730449349765,0.443484,69465.0,69464.0,0.001642]
[1730449351113,0.441484,69465.0,69464.0,0.001642]
[1730449351334,0.28241225,69465.0,69464.0,0.001642]
[1730449351559,0.44152142,69465.0,69464.0,0.001642]
[1730449352021,0.44352142,69465.0,69464.0,0.001642]
[1730449352699,0.87522142,69465.0,69464.0,0.001642]
[1730449352926,1.01509921,69465.0,69464.0,0.001642]
[1730449353401,1.01509921,69465.0,69463.0,0.00130288]
[1730449353402,0.245959,69464.0,69463.0,0.00130288]
[1730449353628,0.58620121,69464.0,69463.0,0.00130288]
[1730449354894,0.58420121,69464.0,69463.0,0.00130288]
[1730449355533,0.54152342,69464.0,69463.0,0.00130288]
[1730449355981,0.54140491,69464.0,69463.0,0.00130288]
[1730449356238,0.54340491,69464.0,69463.0,0.00130288]
[1730449356422,0.62310491,69464.0,69463.0,0.00130288]
[1730449356647,0.66574605,69464.0,69463.0,0.00130288]
[1730449357523,0.66374605,69464.0,69463.0,0.00130288]
[1730449357740,0.81107103,69464.0,69463.0,0.00122206]
[1730449358186,0.66505561,69464.0,69463.0,0.00122206]
[1730449358619,0.81036129,69464.0,69463.0,0.00122206]
[1730449358852,0.14398,69454.0,69453.0,0.006642]
[1730449359082,0.28243525,69454.0,69453.0,0.006642]
[1730449359299,0.44142591,69454.0,69453.0,0.006642]
[1730449359721,0.15899066,69454.0,69453.0,0.18412131]
[1730449359931,0.2450827,69454.0,69453.0,0.181242]
[1730449360156,0.06456647,69455.0,69453.0,0.181242]
[1730449360623,0.04304179,69454.0,69453.0,0.181242]
[1730449360830,0.04304179,69454.0,69453.0,0.33111734]
[1730449361479,0.04304179,69455.0,69453.0,0.33111734]
[1730449362381,0.18701979,69455.0,69453.0,0.33111734]
[1730449362610,0.14398,69454.0,69453.0,0.33111734]
[1730449363123,0.20854134,69454.0,69453.0,0.33111734]
[1730449363349,0.4413159,69454.0,69453.0,0.001642]
[1730449363561,0.54892037,69454.0,69453.0,0.001642]
[1730449363783,0.4413159,69454.0,69453.0,0.001642]
[1730449364213,0.143986,69451.0,69450.0,0.28119817]